[Event "Czech Youth U16 Girls 2024"]
[Site "Kouty nad Desnou"]
[Date "2024.03.15"]
[Round "8.7"]
[White "Dlaskova, Eliska"]
[Black "Dudkova, Josefina"]
[Result "0-1"]
[ECO "B01"]
[WhiteElo "1526"]
[BlackElo "1796"]
[Annotator "NA COMBH"]
[PlyCount "90"]
[EventDate "2024.03.10"]
[EventType "swiss"]
[EventCountry "CZE"]
[SourceTitle "playchess.com"]
[Source "ChessBase"]
[SourceQuality "1"]
[TimeControl "40/5400+30:1800+30"]

1. e4 {[%emt 0:00:05]} d5 {[%emt 0:00:06]} 2. exd5 {[%emt 0:00:05]} Qxd5 {[%emt 0:00:06]} 3. Nc3 {[%emt 0:00:12]} Qd6 {[%emt 0:00:09]} 4. Nf3 {[%emt 0:00:08]} Nf6 {[%emt 0:00:09]} 5. d4 {[%emt 0:00:39]} Bg4 {[%emt 0:00:13]} 6. h3 {[%emt 0:01:20]} Bxf3 {[%emt 0:00:38]} 7. Qxf3 {[%emt 0:01:24]} c6 {[%emt 0:00:24]} 8. Be3 {[%emt 0:03:38]} e6 {[%emt 0:01:01]} 9. Be2 {[%emt 0:02:51]} Be7 {[%emt 0:07:37]} 10. O-O {[%emt 0:04:20]} O-O {[%emt 0:03:51]} 11. Rad1 {[%emt 0:05:28]} Qb4 {[%emt 0:01:41]} 12. Rb1 {[%emt 0:10:08]} Nbd7 {[%emt 0:02:57]} 13. a3 {[%emt 0:05:56]} Qa5 {[%emt 0:00:48]} 14. Qg3 {[%emt 0:00:52]} Rfe8 {[%emt 0:02:53]} 15. Qg5 {[%emt 0:08:56]} Nd5 {[%emt 0:03:36]} 16. Qg3 {[%emt 0:03:50]} Nxc3 {[%emt 0:02:59]} 17. bxc3 {[%emt 0:00:15]} b6 {[%emt 0:08:12]} 18. Rb3 {[%emt 0:10:24]} Nf6 {[%emt 0:04:12]} 19. Qe5 {[%emt 0:07:22]} Qxe5 {[%emt 0:06:48]} 20. dxe5 {[%emt 0:00:14]} Nd5 {[%emt 0:00:12]} 21. c4 {[%emt 0:03:59]} Nxe3 {[%emt 0:00:50]} 22. Rxe3 {[%emt 0:01:05]} Bc5 {[%emt 0:00:13]} 23. Rg3 {[%emt 0:03:33]} Bd4 {[%emt 0:02:05]} 24. Rd3 {[%emt 0:04:53]} Bxe5 {[%emt 0:02:03]} 25. f4 {[%emt 0:00:58]} Bf6 {[%emt 0:01:53]} 26. Bf3 {[%emt 0:01:02]} Rac8 {[%emt 0:02:16]} 27. Rd7 {[%emt 0:00:29]} Re7 {[%emt 0:01:30]} 28. Rfd1 {[%emt 0:00:55]} Rxd7 {[%emt 0:04:07]} 29. Rxd7 {[%emt 0:00:29]} a5 {[%emt 0:01:00]} 30. Rd6 {[%emt 0:02:19]} Be7 {[%emt 0:00:59]} 31. Rd3 {[%emt 0:02:36]} b5 {[%emt 0:01:28]} 32. Rc3 {[%emt 0:04:25]} b4 {[%emt 0:03:19]} 33. axb4 {[%emt 0:00:22]} Bxb4 {[%emt 0:00:11]} 34. Rb3 {[%emt 0:02:00]} Bc5+ {[%emt 0:00:06]} 35. Kf1 {[%emt 0:00:43]} a4 {[%emt 0:00:25]} 36. Rb2 {[%emt 0:00:48]} a3 {[%emt 0:00:40]} 37. Ra2 {[%emt 0:00:06]} Rb8 {[%emt 0:00:14]} 38. Be4 {[%emt 0:01:43]} f5 {[%emt 0:01:44]} 39. Bd3 {[%emt 0:00:29]} Rb1+ {[%emt 0:00:30]} 40. Ke2 {[%emt 0:00:50]} h6 {[%emt 0:01:09]} 41. Kf3 {[%emt 0:32:08]} g5 {[%emt 0:30:50]} 42. g4 {[%emt 0:01:48]} Rh1 {[%emt 0:03:10]} 43. Kg2 {[%emt 0:01:38]} Rg1+ {[%emt 0:00:24]} 44. Kh2 {[%emt 0:00:27]} fxg4 {[%emt 0:01:28]} 45. Rxa3 {[%emt 0:01:45]} g3# 0-1

[Event "Czech Youth U16 Girls 2024"]
[Site "Kouty nad Desnou"]
[Date "2024.03.15"]
[Round "8.8"]
[White "Hetfleischova, Elen"]
[Black "Archlebova, Stela"]
[Result "1-0"]
[ECO "C31"]
[WhiteElo "1699"]
[BlackElo "1600"]
[Annotator "NA COMBH"]
[PlyCount "41"]
[EventDate "2024.03.10"]
[EventType "swiss"]
[EventCountry "CZE"]
[SourceTitle "playchess.com"]
[Source "ChessBase"]
[SourceQuality "1"]
[TimeControl "40/5400+30:1800+30"]

1. e4 {[%emt 0:00:04]} e5 {[%emt 0:00:07]} 2. f4 {[%emt 0:00:07]} d5 {[%emt 0:01:24]} 3. exd5 {[%emt 0:00:14]} Qxd5 {[%emt 0:01:51]} 4. Nc3 {[%emt 0:00:36]} Qd8 {[%emt 0:01:36]} 5. fxe5 {[%emt 0:04:05]} Nc6 {[%emt 0:01:24]} 6. Nf3 {[%emt 0:01:56]} Bg4 {[%emt 0:01:29]} 7. Bb5 {[%emt 0:00:52]} Nge7 {[%emt 0:03:41]} 8. d4 {[%emt 0:01:27]} a6 {[%emt 0:07:37]} 9. Bxc6+ {[%emt 0:00:45]} Nxc6 {[%emt 0:00:12]} 10. Be3 {[%emt 0:00:11]} Bb4 {[%emt 0:02:25]} 11. O-O {[%emt 0:01:08]} O-O {[%emt 0:00:50]} 12. Qd3 {[%emt 0:00:28]} Bxc3 {[%emt 0:00:58]} 13. Ng5 {[%emt 0:02:00]} g6 {[%emt 0:04:15]} 14. Qxc3 {[%emt 0:01:12]} Ne7 {[%emt 0:03:54]} 15. Qb3 {[%emt 0:03:24]} Nf5 {[%emt 0:03:26]} 16. Ne4 {[%emt 0:02:43]} Nxe3 {[%emt 0:00:54]} 17. Nf6+ {[%emt 0:00:42]} Kh8 {[%emt 0:00:26]} 18. Qxe3 {[%emt 0:00:16]} Bf5 {[%emt 0:01:18]} 19. Qh6 {[%emt 0:00:16]} Qxd4+ {[%emt 0:01:56]} 20. Kh1 {[%emt 0:00:15]} Qxe5 {[%emt 0:00:52]} 21. Qxh7# 1-0

[Event "Czech Youth U16 Girls 2024"]
[Site "Kouty nad Desnou"]
[Date "2024.03.15"]
[Round "8.9"]
[White "Stavova, Marketa"]
[Black "Janouskova, Adela"]
[Result "1-0"]
[ECO "B31"]
[WhiteElo "1641"]
[BlackElo "1684"]
[Annotator "NA COMBH"]
[PlyCount "53"]
[EventDate "2024.03.10"]
[EventType "swiss"]
[EventCountry "CZE"]
[SourceTitle "playchess.com"]
[Source "ChessBase"]
[SourceQuality "1"]
[TimeControl "40/5400+30:1800+30"]

1. e4 {[%emt 0:00:05]} c5 {[%emt 0:00:06]} 2. Nf3 {[%emt 0:00:19]} Nc6 {[%emt 0:00:09]} 3. Bb5 {[%emt 0:00:25]} g6 {[%emt 0:00:25]} 4. O-O {[%emt 0:00:26]} Bg7 {[%emt 0:00:17]} 5. Re1 {[%emt 0:00:29]} e5 {[%emt 0:02:20]} 6. b4 {[%emt 0:01:14]} cxb4 {[%emt 0:02:09]} 7. a3 {[%emt 0:01:24]} Nge7 {[%emt 0:00:11]} 8. axb4 {[%emt 0:01:06]} O-O {[%emt 0:00:26]} 9. Bb2 {[%emt 0:02:41]} d5 {[%emt 0:05:07]} 10. Bxc6 {[%emt 0:02:14]} Nxc6 {[%emt 0:04:47]} 11. exd5 {[%emt 0:01:29]} Qxd5 {[%emt 0:00:30]} 12. Nc3 {[%emt 0:00:40]} Qd8 {[%emt 0:09:53]} 13. Ne4 {[%emt 0:05:28]} Re8 {[%emt 0:07:30]} 14. Bc3 {[%emt 0:06:39]} Qc7 {[%emt 0:06:34]} 15. d4 {[%emt 0:07:13]} f5 {[%emt 0:10:59]} 16. Nc5 {[%emt 0:03:37]} b6 {[%emt 0:03:57]} 17. Na4 {[%emt 0:02:43]} e4 {[%emt 0:02:22]} 18. Ng5 {[%emt 0:01:29]} Qd8 {[%emt 0:05:46]} 19. d5 {[%emt 0:02:23]} Bxc3 {[%emt 0:00:48]} 20. Nxc3 {[%emt 0:00:10]} Nxb4 {[%emt 0:01:20]} 21. Nh3 {[%emt 0:01:26]} Qf6 {[%emt 0:07:25]} 22. Nb5 {[%emt 0:01:25]} Re7 {[%emt 0:04:09]} 23. d6 {[%emt 0:01:57]} Rd7 {[%emt 0:00:41]} 24. Qd2 {[%emt 0:03:44]} Na6 {[%emt 0:01:36]} 25. Qd5+ {[%emt 0:00:26]} Kg7 {[%emt 0:01:29]} 26. Qxa8 {[%emt 0:00:08]} Bb7 {[%emt 0:01:06]} 27. Qxa7 {[%emt 0:01:01]} 1-0

[Event "Czech Youth U16 Girls 2024"]
[Site "Kouty nad Desnou"]
[Date "2024.03.15"]
[Round "8.10"]
[White "Souralova, Jana"]
[Black "Urvalkova, Ema"]
[Result "1-0"]
[ECO "B21"]
[WhiteElo "1597"]
[BlackElo "1496"]
[Annotator "NA COMBH"]
[PlyCount "135"]
[EventDate "2024.03.10"]
[EventType "swiss"]
[EventCountry "CZE"]
[SourceTitle "playchess.com"]
[Source "ChessBase"]
[SourceQuality "1"]
[TimeControl "40/5400+30:1800+30"]

1. e4 {[%emt 0:00:02]} c5 {[%emt 0:00:07]} 2. d4 {[%emt 0:00:17]} cxd4 {[%emt 0:00:08]} 3. c3 {[%emt 0:00:07]} d5 {[%emt 0:04:32]} 4. exd5 {[%emt 0:00:35]} Qxd5 {[%emt 0:00:12]} 5. cxd4 {[%emt 0:00:09]} Nf6 {[%emt 0:01:51]} 6. Nc3 {[%emt 0:04:08]} Qd8 {[%emt 0:01:31]} 7. Nf3 {[%emt 0:01:16]} Bg4 {[%emt 0:01:13]} 8. Be2 {[%emt 0:05:49]} e6 {[%emt 0:01:12]} 9. h3 {[%emt 0:05:32]} Bh5 {[%emt 0:00:30]} 10. Bf4 {[%emt 0:03:15]} Bb4 {[%emt 0:01:18]} 11. O-O {[%emt 0:05:46]} O-O {[%emt 0:01:20]} 12. Rc1 {[%emt 0:03:25]} Nbd7 {[%emt 0:02:11]} 13. Qb3 {[%emt 0:02:03]} Bxc3 {[%emt 0:04:07]} 14. bxc3 {[%emt 0:06:45]} b6 {[%emt 0:02:13]} 15. Rfd1 {[%emt 0:04:59]} h6 {[%emt 0:04:22]} 16. c4 {[%emt 0:03:24]} Rc8 {[%emt 0:02:47]} 17. Qa3 {[%emt 0:03:59]} a5 {[%emt 0:02:18]} 18. Qe3 {[%emt 0:04:27]} Re8 {[%emt 0:03:55]} 19. g4 {[%emt 0:04:34]} Bxg4 {[%emt 0:09:48]} 20. hxg4 {[%emt 0:00:22]} Nxg4 {[%emt 0:00:05]} 21. Qd3 {[%emt 0:02:11]} f5 {[%emt 0:01:13]} 22. Ne5 {[%emt 0:04:44]} Ndxe5 {[%emt 0:01:13]} 23. Bxe5 {[%emt 0:01:10]} Nxe5 {[%emt 0:03:12]} 24. dxe5 {[%emt 0:00:25]} Qxd3 {[%emt 0:00:36]} 25. Rxd3 {[%emt 0:00:12]} g5 {[%emt 0:01:57]} 26. Rd7 {[%emt 0:04:01]} g4 {[%emt 0:06:06]} 27. Rcd1 {[%emt 0:02:54]} Rc5 {[%emt 0:01:46]} 28. f4 {[%emt 0:05:24]} h5 {[%emt 0:02:04]} 29. Rb7 {[%emt 0:01:49]} Rc6 {[%emt 0:01:15]} 30. Rd6 {[%emt 0:01:25]} Rec8 {[%emt 0:01:54]} 31. Rxb6 {[%emt 0:07:12]} Rxb6 {[%emt 0:01:18]} 32. Rxb6 {[%emt 0:00:16]} Kf7 {[%emt 0:01:27]} 33. Bd1 {[%emt 0:07:37]} Rxc4 {[%emt 0:01:54]} 34. Bb3 {[%emt 0:00:30]} Rxf4 {[%emt 0:00:49]} 35. Rxe6 {[%emt 0:00:44]} a4 {[%emt 0:01:42]} 36. Rf6+ {[%emt 0:00:18]} Kg7 {[%emt 0:00:32]} 37. Bc2 {[%emt 0:01:06]} h4 {[%emt 0:01:56]} 38. Bxf5 {[%emt 0:01:56]} a3 {[%emt 0:01:41]} 39. Rg6+ {[%emt 0:01:48]} Kf7 {[%emt 0:00:41]} 40. e6+ {[%emt 0:00:29]} Ke7 {[%emt 0:00:26]} 41. Rg7+ {[%emt 0:04:47]} Kf8 {[%emt 0:05:20]} 42. Rf7+ {[%emt 0:08:33]} Ke8 {[%emt 0:00:16]} 43. Bg6 {[%emt 0:00:13]} Rxf7 {[%emt 0:00:15]} 44. Bxf7+ {[%emt 0:00:10]} Ke7 {[%emt 0:00:07]} 45. Kg2 {[%emt 0:00:53]} g3 {[%emt 0:00:26]} 46. Kh3 {[%emt 0:00:39]} Kf6 {[%emt 0:00:08]} 47. Bh5 {[%emt 0:00:46]} Kxe6 {[%emt 0:00:25]} 48. Bf3 {[%emt 0:00:13]} Ke5 {[%emt 0:00:52]} 49. Kxh4 {[%emt 0:00:13]} Kd4 {[%emt 0:02:25]} 50. Kxg3 {[%emt 0:00:07]} Kd3 {[%emt 0:00:49]} 51. Bd5 {[%emt 0:00:13]} Ke3 {[%emt 0:00:22]} 52. Bg8 {[%emt 0:00:16]} Kd3 {[%emt 0:03:09]} 53. Kf3 {[%emt 0:00:14]} Kd2 {[%emt 0:01:00]} 54. Ke4 {[%emt 0:00:16]} Kc3 {[%emt 0:00:11]} 55. Ke3 {[%emt 0:00:06]} Kb4 {[%emt 0:01:17]} 56. Kd4 {[%emt 0:00:55]} Kb5 {[%emt 0:00:47]} 57. Kc3 {[%emt 0:00:18]} Ka4 {[%emt 0:00:21]} 58. Kc4 {[%emt 0:00:06]} Ka5 {[%emt 0:00:10]} 59. Kb3 {[%emt 0:00:08]} Ka6 {[%emt 0:00:10]} 60. Kxa3 {[%emt 0:00:25]} Ka5 {[%emt 0:00:05]} 61. Bc4 {[%emt 0:00:45]} Kb6 {[%emt 0:00:27]} 62. Kb4 {[%emt 0:00:06]} Kb7 {[%emt 0:00:39]} 63. Kb5 {[%emt 0:00:08]} Ka7 {[%emt 0:00:26]} 64. a4 {[%emt 0:00:14]} Kb7 {[%emt 0:00:20]} 65. a5 {[%emt 0:00:17]} Ka7 {[%emt 0:00:10]} 66. a6 {[%emt 0:00:57]} Ka8 {[%emt 0:00:27]} 67. Kb6 {[%emt 0:00:09]} Kb8 {[%emt 0:00:27]} 68. a7+ {[%emt 0:00:06]} 1-0

[Event "Czech Youth U16 Girls 2024"]
[Site "Kouty nad Desnou"]
[Date "2024.03.16"]
[Round "9.1"]
[White "Lackova, Ludmila"]
[Black "Dobsa, Emma"]
[Result "1/2-1/2"]
[ECO "D17"]
[WhiteElo "1652"]
[BlackElo "1750"]
[Annotator "NA RC"]
[PlyCount "93"]
[EventDate "2024.03.10"]
[EventType "swiss"]
[EventCountry "CZE"]
[SourceTitle "playchess.com"]
[Source "ChessBase"]
[SourceQuality "1"]
[TimeControl "40/5400+30:1800+30"]

1. d4 {[%emt 0:00:02]} d5 {[%emt 0:00:05]} 2. c4 {[%emt 0:00:05]} c6 {[%emt 0:00:03]} 3. Nf3 {[%emt 0:00:06]} Nf6 {[%emt 0:00:05]} 4. Nc3 {[%emt 0:00:05]} dxc4 {[%emt 0:00:05]} 5. a4 {[%emt 0:00:12]} Bf5 {[%emt 0:00:05]} 6. Ne5 {[%emt 0:00:13]} Nbd7 {[%emt 0:00:02]} 7. Nxc4 {[%emt 0:00:11]} Qc7 {[%emt 0:00:01]} 8. g3 {[%emt 0:01:13]} e5 {[%emt 0:00:07]} 9. dxe5 {[%emt 0:06:48]} Nxe5 {[%emt 0:00:03]} 10. Bf4 {[%emt 0:06:35]} Nfd7 {[%emt 0:00:06]} 11. Bg2 {[%emt 0:01:49]} g5 {[%emt 0:00:10]} 12. Bxe5 {[%emt 0:08:18]} Nxe5 {[%emt 0:00:02]} 13. Nxe5 {[%emt 0:04:54]} Qxe5 {[%emt 0:00:02]} 14. Qb3 {[%emt 0:01:37]} Qc7 {[%emt 0:17:58]} 15. O-O {[%emt 0:19:12]} Be6 {[%emt 0:04:50]} 16. Qc2 {[%emt 0:01:35]} Bg7 {[%emt 0:02:32]} 17. Rfd1 {[%emt 0:05:27]} O-O {[%emt 0:04:44]} 18. Rd2 {[%emt 0:12:05]} Rac8 {[%emt 0:04:02]} 19. Ne4 {[%emt 0:04:15]} h6 {[%emt 0:09:04]} 20. Nc5 {[%emt 0:01:37]} Bd5 {[%emt 0:01:02]} 21. e4 {[%emt 0:01:22]} b6 {[%emt 0:04:44]} 22. Na6 {[%emt 0:04:10]} Qb7 {[%emt 0:02:01]} 23. exd5 {[%emt 0:00:14]} Qxa6 {[%emt 0:02:27]} 24. dxc6 {[%emt 0:00:24]} Qa5 {[%emt 0:01:04]} 25. Rd5 {[%emt 0:05:19]} Qb4 {[%emt 0:03:17]} 26. Rb5 {[%emt 0:00:21]} Qe7 {[%emt 0:01:04]} 27. Rd1 {[%emt 0:01:27]} Rc7 {[%emt 0:00:41]} 28. Rbd5 {[%emt 0:02:02]} Rfc8 {[%emt 0:03:19]} 29. R5d2 {[%emt 0:03:29]} Bf6 {[%emt 0:06:14]} 30. h3 {[%emt 0:00:22]} Kg7 {[%emt 0:01:09]} 31. Re2 {[%emt 0:02:28]} Qb4 {[%emt 0:05:28]} 32. Red2 {[%emt 0:00:06]} Qe7 {[%emt 0:00:18]} 33. Qe4 {[%emt 0:03:37]} Qc5 {[%emt 0:02:06]} 34. Qc2 {[%emt 0:00:20]} Qe7 {[%emt 0:00:56]} 35. Kf1 {[%emt 0:00:43]} Qe8 {[%emt 0:10:24]} 36. Qe4 {[%emt 0:01:44]} Qf8 {[%emt 0:03:32]} 37. Qf5 {[%emt 0:00:45]} Rxc6 {[%emt 0:01:55]} 38. Bxc6 {[%emt 0:00:18]} Rxc6 {[%emt 0:00:05]} 39. Rc2 {[%emt 0:02:34]} Re6 {[%emt 0:01:27]} 40. Rcd2 {[%emt 0:01:27]} Qa8 {[%emt 0:03:05]} 41. Kg1 {[%emt 0:01:51]} Qc6 {[%emt 0:01:50]} 42. Qc2 {[%emt 0:01:53]} Qf3 {[%emt 0:00:44]} 43. Rd3 {[%emt 0:05:18]} Qf5 {[%emt 0:01:06]} 44. Kg2 {[%emt 0:14:42]} Qe4+ {[%emt 0:01:22]} 45. Kg1 {[%emt 0:00:45]} Qf5 {[%emt 0:00:11]} 46. Kg2 {[%emt 0:07:01]} Qe4+ {[%emt 0:00:13]} 47. Kg1 {[%emt 0:01:43]} 1/2-1/2

[Event "Czech Youth U16 Girls 2024"]
[Site "Kouty nad Desnou"]
[Date "2024.03.16"]
[Round "9.2"]
[White "Zadrapova, Amalie"]
[Black "Kavanova, Anezka"]
[Result "1-0"]
[ECO "B78"]
[WhiteElo "1857"]
[BlackElo "1661"]
[Annotator "NA RC"]
[PlyCount "57"]
[EventDate "2024.03.10"]
[EventType "swiss"]
[EventCountry "CZE"]
[SourceTitle "playchess.com"]
[Source "ChessBase"]
[SourceQuality "1"]
[TimeControl "40/5400+30:1800+30"]

1. e4 {[%emt 0:00:02]} c5 {[%emt 0:00:13]} 2. Nf3 {[%emt 0:00:06]} d6 {[%emt 0:00:05]} 3. d4 {[%emt 0:00:07]} cxd4 {[%emt 0:00:04]} 4. Nxd4 {[%emt 0:00:04]} Nf6 {[%emt 0:00:07]} 5. Nc3 {[%emt 0:00:04]} g6 {[%emt 0:00:05]} 6. Be3 {[%emt 0:00:07]} Bg7 {[%emt 0:00:04]} 7. f3 {[%emt 0:00:04]} O-O {[%emt 0:00:04]} 8. Qd2 {[%emt 0:00:05]} Nc6 {[%emt 0:00:05]} 9. Bc4 {[%emt 0:00:07]} Bd7 {[%emt 0:00:06]} 10. O-O-O {[%emt 0:00:09]} Rb8 {[%emt 0:00:06]} 11. Bb3 {[%emt 0:01:23]} Na5 {[%emt 0:00:10]} 12. Kb1 {[%emt 0:00:51]} b5 {[%emt 0:01:27]} 13. Qe2 {[%emt 0:05:27]} Nc4 {[%emt 0:06:23]} 14. Bxc4 {[%emt 0:02:31]} bxc4 {[%emt 0:00:05]} 15. Qxc4 {[%emt 0:01:44]} Qb6 {[%emt 0:00:14]} 16. b3 {[%emt 0:02:05]} Rfc8 {[%emt 0:18:37]} 17. Qd3 {[%emt 0:00:41]} Qa5 {[%emt 0:00:19]} 18. Bd2 {[%emt 0:07:24]} Qc5 {[%emt 0:04:40]} 19. Nde2 {[%emt 0:04:13]} d5 {[%emt 0:17:31]} 20. e5 {[%emt 0:10:54]} Bf5 {[%emt 0:05:46]} 21. Qd4 {[%emt 0:02:44]} Qa3 {[%emt 0:08:15]} 22. Bc1 {[%emt 0:04:10]} Qa5 {[%emt 0:30:51]} 23. g4 {[%emt 0:02:23]} Rc4 {[%emt 0:02:04]} 24. Qd2 {[%emt 0:07:34]} Nxg4 {[%emt 0:03:02]} 25. fxg4 {[%emt 0:00:50]} Bxg4 {[%emt 0:00:12]} 26. Nxd5 {[%emt 0:06:36]} Qc5 {[%emt 0:00:25]} 27. Bb2 {[%emt 0:01:50]} Rxc2 {[%emt 0:01:37]} 28. Qxc2 {[%emt 0:03:08]} Bf5 {[%emt 0:00:14]} 29. Rd3 {[%emt 0:00:14]} 1-0

[Event "Czech Youth U16 Girls 2024"]
[Site "Kouty nad Desnou"]
[Date "2024.03.16"]
[Round "9.3"]
[White "Dorazilova, Kristyna"]
[Black "Cinkova, Vicky"]
[Result "1-0"]
[ECO "B12"]
[WhiteElo "1722"]
[BlackElo "1682"]
[Annotator "NA RC"]
[PlyCount "84"]
[EventDate "2024.03.10"]
[EventType "swiss"]
[EventCountry "CZE"]
[SourceTitle "playchess.com"]
[Source "ChessBase"]
[SourceQuality "1"]
[TimeControl "40/5400+30:1800+30"]

1. e4 {[%emt 0:00:01]} c6 {[%emt 0:00:14]} 2. d4 {[%emt 0:00:06]} d5 {[%emt 0:00:04]} 3. e5 {[%emt 0:00:04]} Bf5 {[%emt 0:00:24]} 4. Nf3 {[%emt 0:00:18]} e6 {[%emt 0:00:44]} 5. Be2 {[%emt 0:00:53]} Ne7 {[%emt 0:00:32]} 6. Nbd2 {[%emt 0:03:20]} Nd7 {[%emt 0:02:50]} 7. c3 {[%emt 0:03:43]} c5 {[%emt 0:07:11]} 8. Nf1 {[%emt 0:03:58]} Qb6 {[%emt 0:06:41]} 9. Bd3 {[%emt 0:10:40]} Bxd3 {[%emt 0:07:43]} 10. Qxd3 {[%emt 0:00:12]} Nc6 {[%emt 0:01:01]} 11. Ne3 {[%emt 0:04:41]} cxd4 {[%emt 0:11:40]} 12. cxd4 {[%emt 0:00:23]} Bb4+ {[%emt 0:11:34]} 13. Bd2 {[%emt 0:03:13]} Rc8 {[%emt 0:08:07]} 14. O-O {[%emt 0:03:22]} Bxd2 {[%emt 0:04:40]} 15. Qxd2 {[%emt 0:00:16]} Qb4 {[%emt 0:02:13]} 16. Rfd1 {[%emt 0:04:19]} Qxd2 {[%emt 0:00:36]} 17. Rxd2 {[%emt 0:00:16]} Ke7 {[%emt 0:03:19]} 18. Kf1 {[%emt 0:05:51]} Rc7 {[%emt 0:03:48]} 19. Rc1 {[%emt 0:01:30]} Rhc8 {[%emt 0:01:41]} 20. Rdc2 {[%emt 0:01:39]} Kd8 {[%emt 0:06:12]} 21. Ke2 {[%emt 0:01:41]} h6 {[%emt 0:00:48]} 22. Kd2 {[%emt 0:03:42]} Nb6 {[%emt 0:02:03]} 23. b3 {[%emt 0:04:14]} Nb4 {[%emt 0:05:17]} 24. Rxc7 {[%emt 0:00:54]} Rxc7 {[%emt 0:00:05]} 25. Rxc7 {[%emt 0:01:38]} Kxc7 {[%emt 0:00:03]} 26. a4 {[%emt 0:03:26]} Nc8 {[%emt 0:02:29]} 27. Ne1 {[%emt 0:02:30]} b5 {[%emt 0:04:55]} 28. axb5 {[%emt 0:04:36]} Kb6 {[%emt 0:00:45]} 29. Nd3 {[%emt 0:01:40]} Kxb5 {[%emt 0:02:53]} 30. Nc5 {[%emt 0:01:01]} Nc6 {[%emt 0:02:26]} 31. Kc3 {[%emt 0:01:12]} Kb6 {[%emt 0:01:22]} 32. f4 {[%emt 0:01:21]} N8e7 {[%emt 0:00:49]} 33. Na4+ {[%emt 0:02:54]} Kc7 {[%emt 0:00:25]} 34. g4 {[%emt 0:00:59]} f6 {[%emt 0:01:14]} 35. Nc5 {[%emt 0:01:32]} Nd8 {[%emt 0:00:07]} 36. f5 {[%emt 0:04:09]} fxe5 {[%emt 0:00:32]} 37. dxe5 {[%emt 0:00:35]} exf5 {[%emt 0:00:32]} 38. Nxf5 {[%emt 0:02:38]} Nec6 {[%emt 0:00:33]} 39. e6 {[%emt 0:03:47]} Kb6 {[%emt 0:00:47]} 40. e7 {[%emt 0:04:02]} Nxe7 {[%emt 0:00:14]} 41. Na4+ {[%emt 0:30:14]} Kc7 {[%emt 0:30:17]} 42. Nxe7 {[%emt 0:00:09]} Kd6 1-0

[Event "Czech Youth U16 Girls 2024"]
[Site "Kouty nad Desnou"]
[Date "2024.03.16"]
[Round "9.4"]
[White "Brezikova, Beata"]
[Black "Sikorova, Jana"]
[Result "1-0"]
[ECO "B23"]
[WhiteElo "1804"]
[BlackElo "1788"]
[Annotator "NA RC"]
[PlyCount "73"]
[EventDate "2024.03.10"]
[EventType "swiss"]
[EventCountry "CZE"]
[SourceTitle "playchess.com"]
[Source "ChessBase"]
[SourceQuality "1"]
[TimeControl "40/5400+30:1800+30"]

1. e4 {[%emt 0:00:01]} c5 {[%emt 0:00:06]} 2. Nc3 {[%emt 0:00:04]} a6 {[%emt 0:00:05]} 3. Nge2 {[%emt 0:00:04]} e6 {[%emt 0:00:19]} 4. g3 {[%emt 0:00:29]} b5 {[%emt 0:00:09]} 5. Bg2 {[%emt 0:00:16]} Bb7 {[%emt 0:00:17]} 6. O-O {[%emt 0:00:13]} d6 {[%emt 0:00:58]} 7. d3 {[%emt 0:00:43]} Nf6 {[%emt 0:00:33]} 8. f4 {[%emt 0:00:29]} Qc7 {[%emt 0:01:09]} 9. h3 {[%emt 0:01:44]} h5 {[%emt 0:00:50]} 10. Be3 {[%emt 0:02:43]} Nbd7 {[%emt 0:01:19]} 11. Bf3 {[%emt 0:05:08]} g6 {[%emt 0:04:05]} 12. Qd2 {[%emt 0:06:54]} d5 {[%emt 0:05:10]} 13. exd5 {[%emt 0:03:04]} Nxd5 {[%emt 0:01:41]} 14. Nxd5 {[%emt 0:02:20]} Bxd5 {[%emt 0:01:12]} 15. Bxd5 {[%emt 0:07:54]} exd5 {[%emt 0:00:20]} 16. d4 {[%emt 0:01:32]} c4 {[%emt 0:02:13]} 17. f5 {[%emt 0:05:53]} Bg7 {[%emt 0:05:36]} 18. Bf4 {[%emt 0:07:26]} Qd8 {[%emt 0:06:22]} 19. fxg6 {[%emt 0:11:00]} fxg6 {[%emt 0:01:54]} 20. Bg5 {[%emt 0:06:33]} Nf6 {[%emt 0:12:11]} 21. Qe3+ {[%emt 0:03:57]} Kf7 {[%emt 0:05:07]} 22. Rf4 {[%emt 0:08:53]} Re8 {[%emt 0:14:40]} 23. Qf3 {[%emt 0:01:38]} b4 {[%emt 0:02:57]} 24. Rf1 {[%emt 0:04:25]} Re6 {[%emt 0:00:56]} 25. g4 {[%emt 0:04:02]} hxg4 {[%emt 0:02:42]} 26. Rxg4 {[%emt 0:01:11]} Rc8 {[%emt 0:15:12]} 27. Nf4 {[%emt 0:04:37]} Re4 {[%emt 0:01:05]} 28. Nxd5 {[%emt 0:04:15]} Rxg4+ {[%emt 0:02:31]} 29. hxg4 {[%emt 0:00:33]} Rc6 {[%emt 0:01:19]} 30. Nxf6 {[%emt 0:02:17]} Qxd4+ {[%emt 0:00:50]} 31. Kg2 {[%emt 0:01:32]} Bxf6 {[%emt 0:02:13]} 32. Be3 {[%emt 0:00:53]} Qd7 {[%emt 0:04:32]} 33. g5 {[%emt 0:01:09]} Re6 {[%emt 0:01:29]} 34. Qh3 {[%emt 0:01:21]} Qd5+ {[%emt 0:01:06]} 35. Kg1 {[%emt 0:01:41]} Kg8 {[%emt 0:02:05]} 36. gxf6 {[%emt 0:00:34]} Qe5 {[%emt 0:01:09]} 37. f7+ {[%emt 0:00:29]} 1-0

[Event "Czech Youth U16 Girls 2024"]
[Site "Kouty nad Desnou"]
[Date "2024.03.16"]
[Round "9.5"]
[White "Dudkova, Josefina"]
[Black "Dominikova, Denisa"]
[Result "1-0"]
[ECO "D02"]
[WhiteElo "1796"]
[BlackElo "1716"]
[Annotator "NA RC"]
[PlyCount "63"]
[EventDate "2024.03.10"]
[EventType "swiss"]
[EventCountry "CZE"]
[SourceTitle "playchess.com"]
[Source "ChessBase"]
[SourceQuality "1"]
[TimeControl "40/5400+30:1800+30"]

1. d4 {[%emt 0:00:09]} d5 {[%emt 0:00:16]} 2. Bf4 {[%emt 0:00:29]} Nf6 {[%emt 0:00:36]} 3. Nf3 {[%emt 0:00:17]} c5 {[%emt 0:00:53]} 4. e3 {[%emt 0:01:08]} Nc6 {[%emt 0:00:45]} 5. c3 {[%emt 0:07:52]} Qb6 {[%emt 0:00:57]} 6. Qc1 {[%emt 0:02:54]} Bf5 {[%emt 0:04:22]} 7. dxc5 {[%emt 0:03:40]} Qxc5 {[%emt 0:03:04]} 8. Nbd2 {[%emt 0:02:43]} e6 {[%emt 0:04:07]} 9. Nb3 {[%emt 0:03:04]} Qb6 {[%emt 0:02:51]} 10. Nbd4 {[%emt 0:03:21]} Nh5 {[%emt 0:20:02]} 11. Nxf5 {[%emt 0:06:05]} exf5 {[%emt 0:02:20]} 12. Bd3 {[%emt 0:08:56]} Nxf4 {[%emt 0:06:33]} 13. exf4 {[%emt 0:00:15]} Bc5 {[%emt 0:06:44]} 14. O-O {[%emt 0:02:01]} O-O {[%emt 0:01:16]} 15. Bxf5 {[%emt 0:03:46]} d4 {[%emt 0:01:43]} 16. c4 {[%emt 0:09:08]} Rad8 {[%emt 0:03:49]} 17. a3 {[%emt 0:01:35]} d3 {[%emt 0:07:38]} 18. b4 {[%emt 0:02:58]} Nd4 {[%emt 0:03:02]} 19. bxc5 {[%emt 0:12:07]} Nxf3+ {[%emt 0:02:08]} 20. gxf3 {[%emt 0:01:32]} Qxc5 {[%emt 0:02:44]} 21. Be4 {[%emt 0:00:59]} Rd6 {[%emt 0:05:23]} 22. f5 {[%emt 0:04:45]} Qe5 {[%emt 0:03:20]} 23. Qg5 {[%emt 0:03:18]} Rh6 {[%emt 0:02:24]} 24. Qg3 {[%emt 0:00:55]} Qd4 {[%emt 0:00:51]} 25. Rfd1 {[%emt 0:01:47]} d2 {[%emt 0:00:48]} 26. Ra2 {[%emt 0:01:49]} Qf6 {[%emt 0:01:49]} 27. Raxd2 {[%emt 0:00:43]} Rh5 {[%emt 0:00:42]} 28. Rd6 {[%emt 0:03:24]} Qh4 {[%emt 0:03:39]} 29. Qxh4 {[%emt 0:00:45]} Rxh4 {[%emt 0:00:06]} 30. Rd7 {[%emt 0:00:09]} Rh6 {[%emt 0:00:43]} 31. Rxb7 {[%emt 0:00:31]} a6 {[%emt 0:01:13]} 32. c5 {[%emt 0:00:19]} 1-0